bitfinex/quotes_SOLUSD_20240827
["timestamp","ask_amount","ask_price","bid_price","bid_amount"]
[1724748803162,1.56062233,157.14,157.11,22.2766]
[1724748803543,1.56062233,157.14,157.11,15.9117]
[1724748807473,15.04787567,157.16,157.11,22.2765]
[1724748807766,20.0,157.15,157.11,22.2765]
[1724748808736,20.0,157.15,157.12,6.3643]
[1724748809078,1.10855334,157.16,157.11,15.9117]
[1724748809667,15.9889,157.18,157.15,6.3633]
[1724748810856,6.6441,157.2,157.17,6.3625]
[1724748811045,1.56062233,157.19,157.16,6.3629]
[1724748813475,1.56062233,157.19,157.15,22.2707]
[1724748813945,14.56602233,157.2,157.15,22.2707]
[1724748814753,1.56062233,157.2,157.16,6.3629]
[1724748814950,20.0,157.2,157.16,6.3629]
[1724748815160,21.56062233,157.2,157.16,6.3629]
[1724748819873,20.0,157.2,157.15,15.9074]
[1724748820081,20.0,157.21,157.18,6.3617]
[1724748820266,17.63992233,157.22,157.18,6.3617]
[1724748822577,24.00052233,157.22,157.17,15.9055]
[1724748823675,24.00052233,157.22,157.17,22.2678]
[1724748828996,24.00052233,157.22,157.18,6.3621]
[1724748830678,24.00052233,157.22,157.17,15.9055]
[1724748831795,6.3609,157.21,157.17,15.9055]
[1724748831972,1.56062233,157.2,157.17,15.9055]
[1724748835002,1.56062233,157.2,157.17,22.2678]
[1724748835301,23.54803096,157.22,157.17,22.2678]
[1724748835478,22.4398,157.22,157.17,22.2678]
[1724748835686,24.00042233,157.22,157.17,22.2678]
[1724748836372,22.4398,157.22,157.17,22.2678]
[1724748837394,24.00042233,157.22,157.17,22.2678]
[1724748839484,22.4398,157.22,157.17,22.2678]
[1724748840198,17.63992233,157.22,157.17,15.9055]
[1724748841485,1.56062233,157.22,157.17,15.9055]
[1724748841685,21.56062233,157.22,157.19,6.3616]
[1724748843288,1.56062233,157.22,157.19,6.3616]
[1724748843696,1.56062233,157.22,157.2,6.3612]
[1724748843899,1.56062233,157.23,157.2,15.9023]
[1724748844093,21.56062233,157.25,157.21,6.3608]
[1724748844997,27.91992233,157.25,157.2,22.2635]
[1724748847215,21.56062233,157.25,157.21,6.3608]
[1724748847392,27.91992233,157.25,157.2,15.9023]
[1724748847707,27.91992233,157.25,157.2,22.2632]
[1724748848222,21.56062233,157.25,157.21,6.3609]
[1724748848914,1.56062233,157.25,157.21,6.3609]
[1724748851719,1.56062233,157.25,157.18,9.96866529]
[1724748852010,7.91922233,157.27,157.22,6.3601]
[1724748852354,71.3589,157.26,157.21,6.3608]
[1724748852611,65.0,157.26,157.21,6.3609]
[1724748853118,72.91952233,157.26,157.2,22.2642]
[1724748853306,72.91952233,157.26,157.21,6.3609]
[1724748854216,71.3589,157.26,157.21,6.3609]
[1724748858013,1.56062233,157.25,157.21,6.3609]
[1724748858517,1.10776337,157.3,157.27,15.8961]
[1724748858809,6.6519275,157.32,157.27,15.8961]
[1724748858810,255.4,157.35,157.3,6.357]
[1724748859129,1.56062233,157.34,157.31,6.3568]
[1724748859413,6.3545,157.37,157.31,6.3568]
[1724748859918,1.56062233,157.36,157.31,6.3568]
[1724748860099,1.56062233,157.35,157.31,6.3568]
[1724748860514,1.56062233,157.35,157.3,6.3572]
[1724748860730,9.96866529,157.33,157.25,15.8978]
[1724748860906,16.32556529,157.31,157.25,22.257]
[1724748861102,1.56062233,157.3,157.25,22.257]
[1724748861304,1.56062233,157.29,157.25,22.257]
[1724748861624,1.56062233,157.29,157.26,6.3587]
[1724748862409,21.56062233,157.31,157.26,6.3587]
[1724748864526,21.56062233,157.31,157.27,6.3584]
[1724748866115,20.0,157.31,157.28,6.358]
[1724748866314,20.0,157.33,157.29,6.3576]
[1724748866628,20.0,157.34,157.29,6.3576]
[1724748867518,1.56062233,157.33,157.29,6.3576]
[1724748870511,20.0,157.34,157.29,6.3576]
[1724748877427,1.56062233,157.33,157.29,6.3576]
[1724748878832,16.625,157.33,157.29,6.3576]
[1724748882826,20.0,157.34,157.29,6.3576]
[1724748885752,21.56062233,157.34,157.29,6.3576]
[1724748886121,21.56062233,157.34,157.3,6.3572]
[1724748887240,20.0,157.34,157.3,6.3572]
[1724748889029,20.0,157.34,157.31,6.3567]
[1724748889224,26.6491181,157.39,157.3,0.12549]
[1724748889225,1.56062233,157.38,157.3,0.12549]
[1724748889442,1.56062233,157.38,157.34,6.3556]
[1724748889751,7.91462233,157.38,157.33,6.356]
[1724748889921,16.32326529,157.37,157.32,22.2467]
[1724748890131,1.56062233,157.36,157.32,22.2467]
[1724748890451,16.32466529,157.33,157.21,31.8034]
[1724748890644,1.56062233,157.32,157.28,6.358]
[1724748892630,52.91672233,157.33,157.28,6.358]
[1724748894041,51.3561,157.33,157.28,6.358]
[1724748894350,7.91672233,157.33,157.28,6.358]
[1724748894929,1.56062233,157.32,157.28,6.358]
[1724748895451,6.3561,157.33,157.28,6.358]
[1724748899934,21.56062233,157.34,157.28,15.8942]
[1724748901428,20.0,157.34,157.28,15.8942]
[1724748901623,26.3557,157.34,157.29,6.3576]
[1724748903332,6.3569,157.31,157.26,7.63021028]
[1724748903656,6.3565,157.32,157.27,6.3584]
[1724748903838,1.56062233,157.31,157.27,6.3584]
[1724748904767,7.9636341,157.3,157.27,6.3584]
[1724748904954,1.56062233,157.31,157.27,6.3584]
[1724748904955,7.9636341,157.29,157.27,6.3584]
[1724748905265,7.9636341,157.28,157.27,6.3584]
[1724748908533,7.9636341,157.28,157.25,22.257]
[1724748908754,7.9636341,157.27,157.25,22.257]
[1724748909060,7.9636341,157.26,157.25,22.257]
[1724748911646,6.3573,157.3,157.25,22.257]
[1724748912436,1.56062233,157.29,157.25,22.257]
[1724748912963,9.52507946,157.29,157.25,22.257]
[1724748913463,1.56062233,157.29,157.25,22.257]
[1724748914371,6.3573,157.3,157.26,6.3588]
[1724748914372,7.91792233,157.3,157.26,6.3588]
[1724748914763,7.96445767,157.29,157.26,6.3588]
[1724748915065,7.91792233,157.3,157.26,6.3588]
[1724748915265,6.3573,157.3,157.26,6.3588]
[1724748915944,7.91792233,157.3,157.26,6.3588]
[1724748916943,11.52928762,157.29,157.22,15.9009]
[1724748917143,6.3581,157.28,157.23,6.36]
[1724748917362,7.91922233,157.27,157.22,22.2613]
[1724748917661,1.56062233,157.26,157.22,22.2613]
[1724748917835,6.3581,157.28,157.22,15.9009]
[1724748918038,7.91872233,157.28,157.23,6.3599]
[1724748918775,6.16348496,157.27,157.23,6.3599]
[1724748918945,6.16348496,157.26,157.23,6.3599]
[1724748919267,6.16348496,157.25,157.23,6.3599]
[1724748919462,6.16348496,157.24,157.23,6.3599]
[1724748921877,7.91872233,157.28,157.23,6.3599]
[1724748924076,17.88738762,157.28,157.23,6.3599]
[1724748924481,51.3585,157.27,157.22,22.2613]
[1724748924761,1.56062233,157.26,157.22,22.2613]
[1724748927776,7.91962233,157.26,157.22,15.9009]
[1724748928456,6.5669,157.29,157.22,15.9009]
[1724748928457,15.0641,157.3,157.22,15.9009]
[1724748928656,45.0,157.29,157.24,6.3593]
[1724748932393,21.4217,157.3,157.23,9.96866529]
[1724748932394,15.0641,157.3,157.23,9.96866529]
[1724748932579,22.30308495,157.31,157.27,6.3584]
[1724748932750,6.3564,157.32,157.27,6.3584]
[1724748932954,20.0,157.31,157.27,6.3584]
[1724748933170,6.3564,157.32,157.27,6.3584]
[1724748934649,1.56062233,157.31,157.27,6.3584]
[1724748938580,296.08492433,157.31,157.27,6.3584]
[1724748938783,306.05358962,157.31,157.26,22.2552]
[1724748941068,51.3573,157.3,157.26,15.8964]
[1724748941369,1.56062233,157.29,157.26,15.8964]
[1724748941868,51.3573,157.3,157.26,15.8964]
[1724748942063,51.3573,157.3,157.26,22.2552]
[1724748942415,45.0,157.3,157.26,22.2552]
[1724748942692,288.167502,157.31,157.26,22.2552]
[1724748943390,6.3581,157.28,157.23,6.36]
[1724748943590,1.56062233,157.3,157.22,25.99485529]
[1724748943891,30.21875322,157.3,157.25,6.3589]
[1724748944099,7.91792233,157.3,157.25,6.3589]
[1724748944388,23.86143065,157.3,157.26,6.3588]
[1724748945190,1.56062233,157.29,157.26,6.3588]
[1724748947363,23.86143065,157.3,157.26,6.3588]
[1724748952168,6.37160509,157.29,157.26,6.3588]
[1724748952476,23.86143065,157.3,157.26,6.3588]
[1724748952477,6.37160509,157.28,157.27,6.3584]
[1724748955496,288.167502,157.31,157.27,6.3584]
[1724748955795,6.37094639,157.28,157.27,6.3584]
[1724748960574,6.37094639,157.28,157.26,15.8964]
[1724748960893,6.37094639,157.27,157.26,15.8964]
[1724748961298,6.37094639,157.27,157.26,22.2551]
[1724748964500,288.167502,157.31,157.27,6.3583]
[1724748964718,288.167502,157.31,157.28,6.3579]
[1724748965206,6.37090101,157.3,157.28,6.3579]
[1724748965507,6.37090101,157.29,157.28,6.3579]
[1724748967291,288.167502,157.31,157.28,6.3579]
[1724748967796,288.167502,157.31,157.27,6.3584]
[1724748967995,1.56062233,157.3,157.26,15.8964]
[1724748968189,46.56062233,157.3,157.26,15.8964]
[1724748968505,6.17889112,157.29,157.26,22.255]
[1724748968707,7.73951345,157.28,157.26,15.8964]
[1724748968888,6.17889112,157.27,157.26,22.2552]
[1724748969294,12.55072311,157.27,157.26,22.2552]
[1724748970419,1.56062233,157.28,157.26,22.2552]
[1724748970595,12.54957131,157.27,157.26,22.2552]
[1724748971309,6.37183199,157.27,157.26,22.2552]
[1724748973635,1.56062233,157.29,157.26,22.2552]
[1724748973919,6.37178879,157.27,157.26,22.2552]
[1724748974103,1.56062233,157.29,157.26,22.2552]
[1724748974291,6.37179455,157.27,157.26,22.2552]
[1724748975090,14.33658447,157.27,157.26,22.2552]
[1724748975512,14.33658447,157.27,157.26,15.8964]
[1724748977110,1.56062233,157.29,157.26,15.8964]
[1724748977323,14.33693682,157.27,157.26,15.8964]
[1724748979528,14.33693682,157.27,157.26,22.2552]
[1724748980327,67.30001777,157.3,157.27,6.3584]
[1724748980328,22.30001777,157.3,157.27,6.3584]
[1724748980706,14.33574046,157.29,157.27,6.3584]
[1724748980906,14.33574046,157.28,157.27,6.3584]
[1724748984332,14.33553994,157.28,157.27,6.3584]
[1724748987023,14.33553994,157.28,157.27,7.63002046]
[1724748987330,288.167502,157.31,157.29,6.3575]
[1724748987512,14.33450061,157.3,157.29,6.3575]
[1724748988310,14.33450061,157.3,157.29,22.2517]
[1724748988525,7.96361145,157.3,157.29,22.2517]
[1724748989526,14.33374557,157.3,157.29,22.2517]
[1724748991529,288.167502,157.31,157.3,6.3572]
[1724748991732,302.50002736,157.31,157.3,6.3572]
[1724748993239,302.50002736,157.31,157.29,22.2518]
[1724748993420,14.33252536,157.3,157.29,15.8942]
[1724748994140,14.33334409,157.3,157.29,15.8942]
[1724748995538,15.89396642,157.3,157.29,15.8942]
[1724748995911,14.33334409,157.3,157.29,22.2518]
[1724749000342,14.33334409,157.3,157.29,32.22046529]
[1724749002524,14.33334409,157.3,157.29,32.34595529]
[1724749002839,14.33334409,157.3,157.29,32.59693529]
[1724749003631,288.167502,157.31,157.3,6.3572]
[1724749003948,294.5367076,157.31,157.3,6.73367]
[1724749004146,302.49821461,157.31,157.3,6.73367]
[1724749006918,302.49821461,157.31,157.3,6.3572]
[1724749007641,302.49821461,157.31,157.3,26.3572]
[1724749008935,302.49821461,157.31,157.3,36.45135529]
[1724749009245,302.49821461,157.31,157.3,36.82782529]
[1724749009749,296.12889379,157.31,157.3,36.82782529]
[1724749009982,302.49800722,157.31,157.3,36.82782529]
[1724749012977,296.12836113,157.31,157.3,36.82782529]
[1724749013431,296.12835956,157.31,157.3,36.82782529]
[1724749013838,296.12835956,157.31,157.3,26.73367]
[1724749014860,296.12835956,157.31,157.3,26.48269]
[1724749015058,296.12835956,157.31,157.3,26.3572]
[1724749019464,296.12827919,157.31,157.3,26.3572]
[1724749019945,296.12827919,157.31,157.3,6.3572]
[1724749020145,296.12827919,157.31,157.3,26.3572]
[1724749020742,296.12834742,157.31,157.3,26.3572]
[1724749021766,288.167502,157.31,157.3,26.3572]
[1724749021960,296.12835341,157.31,157.3,26.3572]
[1724749024365,296.12835341,157.31,157.3,27.62852046]
[1724749024550,296.12835341,157.31,157.3,26.85916]
[1724749025146,296.12818824,157.31,157.3,28.13038795]
[1724749026351,296.12818824,157.31,157.3,26.85916]
[1724749029967,296.12818824,157.31,157.3,36.82782529]
[1724749030559,296.12818824,157.31,157.3,38.09900382]
[1724749030946,226.08701447,157.31,157.3,36.82782529]
[1724749031253,218.12632823,157.31,157.3,81.82782529]
[1724749032451,218.12632823,157.31,157.3,36.82782529]
[1724749032658,226.08616687,157.31,157.3,36.82782529]
[1724749032974,226.08616687,157.31,157.3,36.57684529]
[1724749034068,226.08616687,157.31,157.3,36.70233529]
[1724749034258,226.08616687,157.31,157.3,36.82782529]
[1724749034842,226.08616873,157.31,157.3,36.82782529]
[1724749035871,226.08622003,157.31,157.3,36.82782529]
[1724749038681,218.12632823,157.31,157.3,36.82782529]
[1724749038857,226.08622815,157.31,157.3,36.82782529]
[1724749042176,226.08623535,157.31,157.3,36.82782529]
[1724749042574,218.12632823,157.31,157.3,36.82782529]
[1724749042757,226.08623535,157.31,157.3,36.82782529]
[1724749044253,226.08623535,157.31,157.3,26.73367]
[1724749044449,226.08623535,157.31,157.3,26.60818]
[1724749044679,226.08623535,157.31,157.3,26.48269]
[1724749044981,232.45446021,157.31,157.3,26.48269]
[1724749045152,232.45446021,157.31,157.3,26.3572]
[1724749046176,232.45446021,157.31,157.3,26.48269]
[1724749048082,232.45446021,157.31,157.3,26.60818]
[1724749048955,232.45446021,157.31,157.3,26.48269]
[1724749049155,232.45446021,157.31,157.3,26.3572]
[1724749051880,232.45494504,157.31,157.3,26.3572]
[1724749052265,218.12632823,157.31,157.3,26.3572]
[1724749052580,218.12632823,157.31,157.3,58.1435]
[1724749052581,232.45494585,157.31,157.3,58.1435]
[1724749053873,232.45494585,157.31,157.3,68.11216529]
[1724749054076,232.45494585,157.31,157.3,68.36314529]
[1724749054373,232.45494585,157.31,157.3,68.48863529]
[1724749056395,232.45494585,157.31,157.3,68.61412529]
[1724749058185,232.45494585,157.31,157.3,58.64546]
[1724749058364,232.45494585,157.31,157.3,68.61412529]
[1724749061384,218.12632823,157.31,157.3,68.61412529]
[1724749061689,224.49442562,157.31,157.3,68.61412529]
[1724749061897,218.12632823,157.31,157.3,68.61412529]
[1724749062067,232.45454736,157.31,157.3,68.61412529]
[1724749062775,232.45454736,157.31,157.3,58.64546]
[1724749062979,232.45454736,157.31,157.3,68.61412529]
[1724749064690,232.45454736,157.31,157.3,48.61412529]
[1724749064892,226.08672892,157.31,157.3,48.61412529]
[1724749065095,232.45504947,157.31,157.3,48.61412529]
[1724749066067,232.45504947,157.31,157.3,69.8853219]
[1724749068090,232.45460671,157.31,157.3,69.8853219]
[1724749068589,228.85960671,157.31,157.3,68.61412529]
[1724749068787,228.85960671,157.31,157.3,113.61412529]
[1724749068982,217.91520671,157.31,157.3,113.61412529]
[1724749069179,206.41978616,157.31,157.3,114.88521396]
[1724749069490,200.46878616,157.31,157.3,114.88521396]
[1724749069791,117.40901239,157.31,157.3,114.88521396]
[1724749070168,104.48131239,157.31,157.3,114.88521396]
[1724749070575,97.86261239,157.31,157.3,114.88521396]
[1724749070873,91.59931239,157.31,157.3,114.88521396]
[1724749071192,85.33601239,157.31,157.3,114.88521396]
[1724749071408,78.16291239,157.31,157.3,131.38851396]
[1724749072278,0.66993862,157.31,157.3,131.38851396]
[1724749072797,22.6649,157.42,157.39,6.3532]
[1724749072985,6.36750403,157.41,157.39,6.3532]
[1724749073297,6.36750403,157.4,157.39,6.3532]
[1724749077993,6.36750114,157.4,157.39,6.3532]
[1724749078499,6.36750114,157.4,157.39,7.62389988]
[1724749080299,6.36750114,157.4,157.39,6.3532]
[1724749081415,22.6649,157.42,157.4,6.353]
[1724749081608,6.36523051,157.41,157.4,6.353]
[1724749082605,6.36523051,157.41,157.35,15.888]
[1724749082900,7.92585284,157.4,157.35,15.888]
[1724749083194,7.92585284,157.39,157.38,6.354]
[1724749083403,16.3338958,157.39,157.36,6.3544]
[1724749083604,7.92585284,157.38,157.36,6.3544]
[1724749083808,6.36523051,157.37,157.36,6.3544]
[1724749084607,14.32358747,157.37,157.36,6.3544]
[1724749086680,6.36523051,157.37,157.36,6.3544]
[1724749086876,9.96866529,157.41,157.37,6.3543]
[1724749087077,6.36665431,157.4,157.37,6.3543]
[1724749087297,14.3249722,157.39,157.37,6.3543]
[1724749087499,14.3249722,157.38,157.37,6.3543]
[1724749090018,9.96866529,157.41,157.37,6.3543]
[1724749090200,6.36665896,157.38,157.37,6.3543]
[1724749090422,14.32498266,157.38,157.37,6.3543]
[1724749090601,22.6649,157.42,157.39,6.3536]
[1724749090815,14.32498813,157.41,157.39,6.3536]
[1724749090991,14.32498813,157.4,157.39,6.3536]
[1724749094413,14.32355765,157.4,157.39,6.3536]
[1724749094696,14.32355765,157.4,157.39,6.73007]
[1724749095092,14.32355765,157.4,157.39,6.3536]
[1724749095886,11.52928762,157.45,157.4,6.3529]
[1724749096088,6.3652246,157.44,157.41,6.3524]
[1724749096283,14.32175535,157.43,157.39,0.12549]
[1724749096489,22.4764,157.46,157.41,22.2348]
[1724749096490,14.32175535,157.42,157.41,22.2348]
[1724749096816,22.4764,157.46,157.41,22.2348]
[1724749096817,22.4764,157.46,157.42,6.3521]
[1724749097286,1.56062233,157.45,157.41,22.2347]
[1724749098008,7.9563548,157.44,157.41,15.882]
[1724749098305,14.3086548,157.43,157.38,22.2387]
[1724749098481,15.1552,157.41,157.3,48.01236529]
[1724749098682,15.1552,157.41,157.35,15.8879]
[1724749098683,7.9563548,157.4,157.35,15.8879]
[1724749098897,7.9563548,157.39,157.38,6.3537]
[1724749099632,6.3572,157.3,157.29,6.64106571]
[1724749099911,6.3572,157.3,157.16,9.96866529]
[1724749099912,19.48564242,157.3,157.16,9.96866529]
[1724749100088,20.12549,157.32,157.14,22.8797]
[1724749100089,9.96866529,157.28,157.18,16.6139256]
[1724749100293,9.51697713,157.27,157.18,16.6139256]
[1724749100608,7.9563548,157.26,157.18,16.6139256]
[1724749100797,7.9563548,157.25,157.18,16.6139256]
[1724749101103,20.6991617,157.24,157.18,16.6139256]
[1724749101306,7.9563548,157.23,157.18,16.6139256]
[1724749101602,7.9563548,157.22,157.21,22.263]
[1724749102012,9.48214885,157.27,157.22,6.3603]
[1724749102306,27.07827462,157.26,157.22,6.3603]
[1724749102513,20.70691589,157.25,157.22,6.3603]
[1724749102694,20.70691589,157.24,157.22,6.3603]
[1724749102895,7.92152652,157.29,157.25,15.8982]
[1724749103209,28.63559139,157.28,157.25,15.8982]
[1724749103412,27.07496906,157.27,157.25,15.8982]
[1724749103586,20.70445579,157.26,157.25,16.02369]
[1724749103794,6.1877,157.33,157.3,6.3569]
[1724749103990,27.07138194,157.32,157.3,6.3569]
[1724749104200,20.70164492,157.31,157.3,6.3569]
[1724749104797,27.07134074,157.31,157.3,6.3569]
[1724749105206,20.70164492,157.31,157.3,6.3569]
[1724749106809,20.70153983,157.31,157.3,6.3569]
[1724749110300,7.9621307,157.31,157.3,6.3569]
[1724749110820,1.56062233,157.36,157.31,6.3566]
[1724749111004,27.06774816,157.35,157.31,6.3566]
[1724749111191,27.06774816,157.34,157.31,6.3566]
[1724749111507,20.69886141,157.33,157.31,6.3566]
[1724749111687,20.69886141,157.32,157.31,6.3566]
[1724749111887,7.96110054,157.32,157.31,6.3566]
[1724749112197,20.69886141,157.32,157.31,6.3566]
[1724749112515,7.96110054,157.32,157.31,6.3566]
[1724749112884,20.69886141,157.32,157.31,6.3566]
[1724749113102,7.96110054,157.32,157.31,6.3566]
[1724749113492,20.69886141,157.32,157.31,6.3566]
[1724749113690,7.96110054,157.32,157.31,6.3566]
[1724749113906,1.56062233,157.35,157.31,6.3566]
[1724749114116,20.70004298,157.32,157.31,6.3566]
[1724749116714,7.96155499,157.32,157.31,6.3566]
[1724749120910,45.0,157.36,157.31,6.3566]
[1724749121116,27.06690356,157.35,157.31,6.3566]
[1724749121290,20.69822359,157.34,157.31,6.3566]
[1724749121490,20.69822359,157.33,157.31,6.3566]
[1724749121692,7.96085523,157.32,157.31,6.3566]
[1724749122603,20.69826966,157.32,157.31,6.3566]
[1724749123808,20.69904393,157.32,157.31,6.3566]
[1724749124014,7.96117074,157.32,157.31,6.3566]
[1724749124227,20.69904393,157.32,157.31,6.3566]
[1724749124513,7.96117074,157.32,157.31,6.3566]
[1724749125105,20.69904393,157.32,157.31,6.3566]
[1724749125994,7.96117074,157.32,157.31,6.3566]
[1724749126397,20.69904393,157.32,157.31,6.3566]
[1724749126624,7.96117074,157.32,157.31,6.3566]
[1724749126809,20.69904393,157.32,157.31,6.3566]
[1724749127122,7.96117074,157.32,157.31,6.3566]
[1724749127701,20.69904393,157.32,157.31,6.3566]
[1724749131327,52.91562233,157.36,157.31,6.3566]
[1724749131501,7.96121263,157.32,157.31,6.3566]
[1724749131703,12.73794022,157.34,157.31,6.3566]
[1724749132002,20.69915285,157.33,157.31,6.3566]
[1724749132202,52.91562233,157.36,157.31,6.3566]
[1724749132203,20.69915285,157.32,157.31,6.3566]
[1724749133099,20.69915285,157.32,157.31,6.48209]
[1724749134001,7.96121263,157.32,157.31,6.48209]
[1724749134302,20.69827616,157.32,157.31,6.48209]
[1724749134629,7.96121263,157.32,157.31,6.85856]
[1724749135205,1.56062233,157.37,157.34,6.3555]
[1724749135400,20.69623267,157.36,157.34,6.3555]
[1724749135622,20.69623267,157.35,157.34,6.3555]
[1724749135927,20.69623267,157.35,157.31,0.50196]
[1724749135928,20.69623267,157.35,157.31,6.3565]
[1724749136106,22.256855,157.34,157.31,6.3565]
[1724749136311,20.69623267,157.33,157.31,6.3565]
[1724749136521,20.69623267,157.32,157.31,6.3565]
[1724749138842,1.56062233,157.35,157.31,6.3565]
[1724749139031,27.06651227,157.34,157.31,6.3565]
[1724749139322,20.69792115,157.33,157.32,6.3564]
[1724749141028,27.06649289,157.33,157.32,6.3564]
[1724749141536,1.56062233,157.36,157.32,6.3564]
[1724749141707,36.65503257,157.35,157.32,6.3564]
[1724749141906,19.10580939,157.34,157.32,6.3564]
[1724749142135,27.0665633,157.33,157.32,6.3564]
[1724749144128,27.0665633,157.33,157.31,6.3568]
[1724749144129,36.65383678,157.33,157.31,6.3568]
[1724749144325,27.0665633,157.32,157.31,6.3568]
[1724749145009,27.06660272,157.32,157.31,6.3568]
[1724749147231,27.06660272,157.32,157.31,6.60778]
[1724749147725,27.06660272,157.32,157.31,6.73327]
[1724749147921,27.06660272,157.32,157.31,6.85876]
[1724749148522,1.56062233,157.37,157.33,6.3557]
[1724749148835,27.06487261,157.36,157.33,6.3557]
[1724749149010,27.06487261,157.35,157.33,6.3557]
[1724749149211,27.06487261,157.34,157.33,6.3557]
[1724749149835,27.06487261,157.34,157.33,7.75229161]
[1724749150030,27.06487261,157.34,157.33,6.85766]
[1724749150628,6.36820532,157.34,157.33,6.60668]
[1724749150830,6.36820532,157.34,157.33,6.48119]
[1724749151740,6.36820532,157.34,157.33,6.3557]
[1724749152040,6.36820532,157.34,157.32,22.2468]
[1724749152229,9.94838387,157.37,157.32,22.2468]
[1724749152230,6.36820532,157.33,157.32,22.2468]
[1724749152436,6.36837824,157.33,157.32,22.2468]
[1724749152737,14.32885103,157.33,157.32,22.2468]
[1724749155516,14.32903766,157.33,157.32,22.2468]
[1724749156127,6.36855315,157.33,157.32,22.2468]
[1724749156343,14.32924459,157.33,157.32,22.2468]
[1724749158728,1.56062233,157.35,157.32,22.2468]
[1724749158929,14.32897618,157.33,157.32,22.2468]
[1724749162142,7.96054232,157.33,157.32,22.2468]
[1724749162351,14.32910719,157.33,157.32,22.2468]
[1724749162720,6.36856487,157.33,157.32,22.2468]
[1724749163041,14.32927096,157.33,157.32,22.2468]
[1724749165536,6.36856487,157.33,157.32,22.2468]
[1724749165724,14.32927096,157.33,157.32,22.2468]
[1724749168946,14.32924882,157.33,157.32,22.2468]
[1724749171640,14.32924882,157.33,157.29,15.894]
[1724749171826,14.32924882,157.32,157.3,6.3572]
[1724749172028,14.32988993,157.31,157.3,6.3572]
[1724749172435,6.36884201,157.31,157.3,6.3572]
[1724749172937,14.32989453,157.31,157.3,6.3572]
[1724749173243,14.32989453,157.31,157.29,15.894]
[1724749173423,14.32989453,157.3,157.28,6.358]
[1724749173624,14.32989453,157.29,157.28,6.358]
[1724749174216,14.32989453,157.29,157.26,22.2559]
[1724749174422,14.32989453,157.28,157.26,15.8971]
[1724749174727,14.32989453,157.27,157.26,15.8971]
[1724749175244,1.56062233,157.27,157.23,6.36]
[1724749175433,15.89475491,157.27,157.23,6.36]
[1724749175642,14.33413258,157.26,157.23,6.36]
[1724749175831,14.33413258,157.25,157.24,6.3597]
[1724749177554,14.33413258,157.25,157.24,6.73617]
[1724749177927,14.33413258,157.25,157.24,6.86166]
[1724749178254,7.96340699,157.25,157.24,8.13335261]
[1724749178568,32.35858387,157.31,157.26,6.3586]
[1724749178934,15.89487102,157.3,157.26,6.3586]
[1724749179125,15.89487102,157.29,157.26,6.3586]
[1724749179331,14.33424869,157.28,157.26,6.3586]
[1724749179545,14.33424869,157.27,157.26,6.3586]
[1724749182467,6.3707772,157.27,157.26,6.3586]
[1724749182750,6.37064927,157.29,157.27,6.3584]
[1724749182928,14.33386276,157.28,157.27,6.3584]
[1724749185352,7.96325709,157.28,157.27,6.3584]
[1724749185542,14.33384053,157.28,157.27,6.3584]
[1724749186359,14.33384053,157.28,157.26,6.3588]
[1724749186527,7.96325709,157.27,157.26,6.3588]
[1724749187338,1.56062233,157.3,157.26,6.3588]
[1724749187556,14.33417225,157.29,157.26,6.3588]
[1724749187752,14.33417225,157.28,157.26,6.3588]
[1724749188054,7.96342903,157.27,157.26,6.3588]
[1724749189859,44.28266077,157.27,157.22,22.2615]
[1724749190153,14.3342769,157.26,157.22,22.2615]
[1724749190355,7.96342903,157.25,157.22,22.2615]
[1724749190532,7.96342903,157.24,157.23,6.36]
[1724749191134,7.96342903,157.24,157.23,7.88291738]
[1724749191337,7.96342903,157.24,157.23,0.37647]
[1724749191945,7.91862233,157.29,157.24,6.3594]
[1724749192150,6.37138741,157.28,157.24,6.3594]
[1724749192347,6.37134936,157.27,157.24,6.3594]
[1724749192555,7.9641867,157.26,157.24,6.3594]
[1724749192753,1.56062233,157.29,157.24,6.3594]
[1724749192754,7.9641867,157.25,157.24,6.3594]
[1724749194968,1.56062233,157.29,157.25,6.3592]
[1724749195253,7.96437771,157.28,157.25,6.3592]
[1724749195463,21.56062233,157.29,157.25,6.3592]
[1724749195638,7.96442001,157.28,157.25,6.3592]
[1724749195840,7.96442001,157.27,157.25,6.3592]